fUSD/lending_fUSD_20240122
["ID","MTS","AMOUNT","RATE_DAILY","PERIOD"]
[312516899,1705939838934,-1481.07984364,0.00023,2]
[312516901,1705939838945,-6938.46057468,0.00023,2]
[312516904,1705939838956,-5539.30473495,0.00023,2]
[312516906,1705939838967,-1670.64200239,0.00023,2]
[312516908,1705939838980,-257.60914271,0.00023,2]
[312516910,1705939838992,-2739.22703831,0.00023,2]
[312516966,1705939839498,-12053.7724938,0.00023,2]
[312516968,1705939839509,-307.48492604,0.00023,2]
[312516970,1705939839521,-13255.26543516,0.00023,2]
[312516974,1705939839544,-1311.60859331,0.00023,2]
[312517095,1705939840786,-585.18103821,0.00023,2]
[312517097,1705939840798,-2032.5,0.00023,2]
[312517100,1705939840810,-1622.22052362,0.00023,2]
[312517102,1705939840821,-4432.26839026,0.00023,2]
[312517104,1705939840833,-3986.2815106,0.00023,2]
[312517106,1705939840844,-12915.68685511,0.00023,2]
[312517108,1705939840856,-650.0,0.00023,2]
[312517161,1705939841370,-14656.19042946,0.00023,2]
[312517162,1705939841380,-185058.34436613,0.00023,2]
[312517163,1705939841405,-21774.87494968,0.00023,2]
[312517164,1705939841420,-595.6030002,0.00023,2]
[312517165,1705939841453,-975.69468549,0.00023,2]
[312517166,1705939841466,-720.83166211,0.00023,2]
[312517167,1705939841479,-825.28,0.00023,2]
[312517168,1705939841513,-756.131,0.00023,2]
[312517169,1705939841525,-32572.68744385,0.00023,2]
[312517170,1705939841538,-754.90961272,0.00023,2]
[312517171,1705939841549,-1616.14996358,0.00023,2]
[312517172,1705939841570,-785.15857409,0.00023,2]
[312517173,1705939841586,-4922.14837801,0.00023,2]
[312517174,1705939841598,-3450.37432795,0.00023,2]
[312517175,1705939841610,-797.95569169,0.00023,2]
[312517176,1705939841628,-838.4541821,0.00023,2]
[312517177,1705939841653,-111.27986643,0.00023,2]
[312517178,1705939841665,-1021.98556892,0.00023,2]
[312517179,1705939841677,-489.90736945,0.00023,2]
[312517180,1705939841698,-681.02717481,0.00023,2]
[312517181,1705939841711,-6656.26601695,0.00023,2]
[312517182,1705939841725,-10175.2675133,0.00023,2]
[312517216,1705939843320,-1282.89966607,0.00023,2]
[312517219,1705939843332,-324.50393721,0.00023,2]
[312517221,1705939843344,-1302095.73962865,0.00023,2]
[312517223,1705939843355,-814287.9157217,0.00023,2]
[312517227,1705939843384,-196666.75363117,0.00023,2]
[312517229,1705939843396,-420.47620801,0.00023,2]
[312517231,1705939843407,-285.32172466,0.00023,2]
[312517232,1705939843418,-733.5160006,0.00023,2]
[312517233,1705939843460,-470.18795034,0.00023,2]
[312517234,1705939843473,-341.04,0.00023,2]
[312517235,1705939843485,-6809.14048189,0.00023,2]
[312517236,1705939843497,-1600.42626864,0.00023,2]
[312517237,1705939843508,-511.680005,0.00023,2]
[312517238,1705939843603,-0.00995601,0.00023,2]
[312517239,1705939843615,-3048.60023937,0.00023,2]
[312517275,1705939846282,-255.84825812,0.000229,2]
[312517277,1705939846291,-2191.06081218,0.00023,2]
[312517280,1705939846302,-11165.33584239,0.00023,2]
[312517282,1705939846314,-810.9031373,0.00023,2]
[312517286,1705939846345,-57.84137527,0.00023,2]
[312517289,1705939846368,-6139.41246664,0.00023,2]
[312517292,1705939846380,-3963.2074149,0.00023,2]
[312517293,1705939846395,-32693.28281766,0.00023,2]
[312517294,1705939846417,-422.91126348,0.00023,2]
[312517295,1705939846428,-6514.0668,0.00023,2]
[312517306,1705939847040,-1045.71217752,0.00023,2]
[312517307,1705939847051,-1164.9428467,0.00023,2]
[312517308,1705939847067,-597.27499999,0.00023,2]
[312517309,1705939847078,-345.12,0.00023,2]
[312517310,1705939847102,-432.3925,0.00023,2]
[312517311,1705939847113,-72361.41886322,0.00023,2]
[312517312,1705939847125,-510.41555221,0.00023,2]
[312517313,1705939847136,-12364.68893938,0.00023,2]
[312517314,1705939847147,-358245.97241305,0.00023,2]
[312517315,1705939847166,-34140.63230507,0.00023,2]
[312517316,1705939847178,-21343.45045401,0.00023,2]
[312517317,1705939847193,-557.45782889,0.00023,2]
[312517320,1705939931758,155.44142013,0.00020488,2]
[312517321,1705939933475,155.21894313,0.00020488,2]
[312517322,1705939933835,155.0,0.00020488,2]
[312517323,1705939934300,565.9057501,0.0002026,2]
[312517324,1705939936008,730.38214306,0.00021,2]
[312517325,1705939977217,9092.05547871,0.00020757,7]
[312517326,1705939993188,3123.75802436,0.00020757,7]
[312517331,1705940070327,294.95,0.00019304,2]
[312517334,1705940130086,150.0,0.00020995,2]
[312517335,1705940134141,200.0,0.0002097,2]
[312517336,1705940228160,3631.61,0.0002096,2]
[312517337,1705940264899,500.0,0.00020989,2]
[312517338,1705940314478,302.49089136,0.00021002,2]
[312517339,1705940315633,327.47231693,0.00021002,2]
[312517340,1705940316081,2622.16034741,0.00021002,2]
[312517341,1705940319027,3128.85949168,0.00021002,2]
[312517342,1705940321322,160.97953374,0.00020904,2]
[312517343,1705940329645,328.60915323,0.00021002,2]
[312517344,1705940330082,2620.13527505,0.00021002,2]
[312517345,1705940334473,302.26849576,0.00021002,2]
[312517346,1705940334785,23900.0,0.00020893,2]
[312517347,1705940335021,234.59896057,0.00019952,2]
[312517348,1705940338002,354.80929642,0.00021002,2]
[312517349,1705940340459,3628.02899635,0.00021002,2]
[312517350,1705940344222,196.89871886,0.00021001,2]
[312517351,1705940344669,245.11943279,0.00021001,2]
[312517352,1705940348783,543.34550297,0.00021002,2]
[312517353,1705940350082,314.52691818,0.00021002,2]
[312517354,1705940350570,155.0,0.00021002,2]
[312517355,1705940351801,361.9979886,0.00021002,2]
[312517356,1705940351906,250.51655959,0.00021002,2]
[312517357,1705940352210,525.29229409,0.00021002,2]
[312517358,1705940352410,3007.39007881,0.00021002,2]
[312517359,1705940352750,1257.17716721,0.00021002,2]
[312517360,1705940352785,161.90565138,0.00021002,2]
[312517361,1705940353718,473.62844747,0.00021002,2]
[312517362,1705940353923,371.50432901,0.00021002,2]
[312517363,1705940354010,354.55276498,0.00021002,2]
[312517364,1705940355213,218.13979493,0.00021002,2]
[312517365,1705940356418,5219.26659674,0.00021002,2]
[312517366,1705940356474,3625.33256265,0.00021002,2]
[312517367,1705940356725,3046.47150089,0.00021002,2]
[312517368,1705940356984,177.98071241,0.00021001,2]
[312517369,1705940357321,2904.1472986,0.00021002,2]
[312517370,1705940357358,263.62757005,0.00021002,2]
[312517371,1705940358291,196.7515836,0.00021002,2]
[312517372,1705940358345,3862.48921522,0.00021002,2]
[312517373,1705940358390,4250.31033921,0.00021002,2]
[312517374,1705940358462,155.0,0.00021001,2]
[312517375,1705940358496,524.21526262,0.00021001,2]
[312517376,1705940358678,155.0,0.00021001,2]
[312517377,1705940358769,235.33898176,0.00021001,2]
[312517378,1705940359360,1769.33521671,0.00021002,2]
[312517379,1705940359491,767.2821241,0.00021001,2]
[312517380,1705940359743,202.83452265,0.00021001,2]
[312517381,1705940361237,652.06705863,0.00021002,2]
[312517382,1705940361285,698.42275676,0.00021002,2]
[312517383,1705940362013,2147.25148817,0.00021002,2]
[312517384,1705940362657,7789.85640413,0.00021002,2]
[312517385,1705940362732,1071.57950665,0.00021002,2]
[312517386,1705940362805,155.0,0.00021002,2]
[312517387,1705940362873,400.87297161,0.00021002,2]
[312517388,1705940364214,524.85119397,0.00021002,2]
[312517389,1705940364243,1046.17658678,0.00021002,2]
[312517390,1705940364643,412.5646802,0.00021002,2]
[312517391,1705940364672,244.92279047,0.00021002,2]
[312517392,1705940364714,307.79461246,0.00021002,2]
[312517393,1705940365638,200.0,0.00020944,2]
[312517394,1705940365705,473.28323911,0.00021002,2]
[312517395,1705940366161,1710.59950938,0.00021002,2]
[312517396,1705940366263,941.29057782,0.00021002,2]
[312517397,1705940366457,260.38917657,0.00021002,2]
[312517398,1705940366484,248.93553519,0.00021002,2]
[312517399,1705940367931,371.23027869,0.00021002,2]
[312517400,1705940368841,1418.26758153,0.00021002,2]
[312517401,1705940368873,155.0,0.00021002,2]
[312517402,1705940369210,217.97880369,0.00021002,2]
[312517403,1705940369672,314.29782556,0.00021002,2]
[312517404,1705940369794,361.73158924,0.00021002,2]
[312517405,1705940369867,263.41884121,0.00021002,2]
[312517406,1705940369919,211.86194871,0.00021002,2]
[312517407,1705940370393,4250.31033921,0.00021002,2]
[312517408,1705940370535,199.40820147,0.00021002,2]
[312517409,1705940370737,543.34550297,0.00021002,2]
[312517410,1705940370764,1256.23406037,0.00021002,2]
[312517411,1705940371741,202.68746057,0.00021002,2]
[312517412,1705940371910,250.33049543,0.00021002,2]
[312517413,1705940371969,2308.67867442,0.00021002,2]
[312517414,1705940372381,3007.39007881,0.00021002,2]
[312517415,1705940372408,5215.28497294,0.00021002,2]
[312517416,1705940372464,155.0,0.00021002,2]
[312517417,1705940372682,155.0,0.00021002,2]
[312517418,1705940372779,161.90565138,0.00021002,2]
[312517419,1705940373363,1768.14266245,0.00021002,2]
[312517420,1705940373440,767.2821241,0.00021002,2]
[312517421,1705940374140,155.0,0.00021002,2]
[312517422,1705940374763,235.16370746,0.00021002,2]
[312517423,1705940374996,523.81839796,0.00021002,2]
[312517424,1705940375124,651.64881529,0.00021002,2]
[312517425,1705940375535,2902.02597476,0.00021002,2]
[312517426,1705940376338,3859.6178324,0.00021002,2]
[312517427,1705940376756,3044.81667125,0.00021002,2]
[312517428,1705940376987,177.84513711,0.00021002,2]
[312517429,1705940378037,2147.25148817,0.00021002,2]
[312517430,1705940379032,155.0,0.00021002,2]
[312517431,1705940379282,697.90157938,0.00021002,2]
[312517432,1705940379902,33397.69847134,0.00021002,2]
[312517433,1705940380672,412.5646802,0.00021002,2]
[312517434,1705940380779,155.0,0.00021002,2]
[312517435,1705940381021,155.0,0.00021002,2]
[312517436,1705940382479,1045.42232212,0.00021002,2]
[312517437,1705940382656,7784.09687883,0.00021002,2]
[312517438,1705940382727,307.79461246,0.00021002,2]
[312517439,1705940382754,1070.76992827,0.00021002,2]
[312517440,1705940382784,400.56133493,0.00021002,2]
[312517441,1705940382973,260.19540859,0.00021002,2]
[312517442,1705940383590,531.2095953,0.00021002,2]
[312517443,1705940384271,940.64186742,0.00021002,2]
[312517444,1705940384464,248.74354993,0.00021002,2]
[312517445,1705940384565,166.80550404,0.00021002,2]
[312517446,1705940385172,1710.59950938,0.00021002,2]
[312517447,1705940388817,242.20756884,0.00021002,2]
[312517448,1705940389946,2308.67867442,0.00021002,2]
[312517449,1705940390547,836.0634753,0.00021002,2]
[312517450,1705940391921,211.70683219,0.00021002,2]
[312517451,1705940409427,13715.87,0.00020909,2]
[312517452,1705940411703,4639.84031702,0.00021002,2]
[312517453,1705940437081,366.73,0.00020907,2]
[312517454,1705940439526,10533.39495593,0.00021002,2]
[312517455,1705940443428,458.08995678,0.00021002,2]
[312517456,1705940449183,582.4739534,0.00021002,2]
[312517457,1705940455194,412.5646802,0.00021002,2]
[312517458,1705940459994,2000.0,0.00020963,2]
[312517459,1705940461521,250.0,0.00020963,2]
[312517460,1705940463463,1460.15106912,0.00021002,2]
[312517461,1705940474995,2705.0,0.00020936,2]
[312517462,1705940480827,1086.9941,0.00020903,14]
[312517463,1705940481449,973.43404608,0.00021002,2]
[312517464,1705940499557,811.1950384,0.00021002,2]
[312517465,1705940504737,186.91,0.0002095,10]
[312517466,1705940515446,422.63261501,0.00021002,2]
[312517467,1705940519375,384.92571764,0.00021002,2]
[312517468,1705940525689,412.5646802,0.00021002,2]
[312517469,1705940525914,4250.31033921,0.00021002,2]
[312517470,1705940531452,422.63261501,0.00021002,2]
[312517471,1705940537701,582.4739534,0.00021002,2]
[312517472,1705940548213,4639.84031702,0.00021002,2]
[312517473,1705940553459,422.63261501,0.00021002,2]
[312517474,1705940569443,422.63261501,0.00021002,2]
[312517475,1705940571216,150.0,0.00020926,2]
[312517476,1705940579512,303.86,0.00019017,2]
[312517477,1705940589531,422.63261501,0.00021002,2]
[312517478,1705940591885,384.92571764,0.00021002,2]
[312517479,1705940597707,500.0,0.0002092,2]
[312517480,1705940604607,412.5646802,0.00021002,2]
[312517481,1705940609485,422.63261501,0.00021002,2]
[312517482,1705940614177,414.91,0.00020902,2]
[312517483,1705940617439,398.99,0.00020916,2]
[312517484,1705940627453,422.63261501,0.00021002,2]
[312517485,1705940630052,10533.39495593,0.00021002,2]
[312517486,1705940641569,150.0,0.00021002,2]
[312517487,1705940647475,422.63261501,0.00021002,2]
[312517488,1705940663478,422.63261501,0.00021002,2]
[312517489,1705940675022,3628.02899635,0.00021002,2]
[312517490,1705940679083,50529.00867649,0.00021002,2]
[312517491,1705940680722,412.5646802,0.00021002,2]
[312517492,1705940685567,422.63261501,0.00021002,2]
[312517493,1705940686213,582.4739534,0.00021001,2]
[312517494,1705940693408,50529.00867649,0.00021002,2]
[312517495,1705940693814,698.42275676,0.00021002,2]
[312517496,1705940698756,232.19045124,0.00021001,2]
[312517497,1705940698996,2308.67867442,0.00021001,2]
[312517498,1705940700265,500.0,0.0002098,2]
[312517499,1705940700317,24364.25256721,0.00021001,2]
[312517500,1705940700358,155.0,0.00021002,2]
[312517501,1705940701462,422.63261501,0.00021002,2]
[312517502,1705940702414,283.2384976,0.00021002,2]
[312517503,1705940702796,544.50637499,0.00021002,2]
[312517504,1705940705792,155.64826691,0.00018902,2]
[312517505,1705940715078,33340.31874745,0.00021002,2]
[312517506,1705940718392,282.56215802,0.00021002,2]
[312517507,1705940719524,218.21146527,0.00021002,2]
[312517508,1705940720006,186.95672057,0.00018902,2]
[312517509,1705940721509,544.50637499,0.00021002,2]
[312517510,1705940726655,-600.0,0.00021003,2]
[312517511,1705940733801,251.63244978,0.00017012,2]
[312517512,1705940734779,1892.88295925,0.00018902,2]
[312517513,1705940735427,5190.29776533,0.00018902,2]
[312517514,1705940738453,159.98,0.00016791,2]
[312517515,1705940738778,532.69358857,0.00018902,2]
[312517516,1705940739672,292.37543854,0.00018902,2]
[312517517,1705940740800,593.84569408,0.00018902,2]
[312517518,1705940747359,362.59758498,0.00018902,2]
[312517519,1705940751145,533.55329785,0.00019,2]
[312517520,1705940754771,532.69358857,0.00018902,2]
[312517521,1705940755424,3063.29363498,0.00018902,2]
[312517522,1705940757226,215.71744447,0.00021002,2]
[312517523,1705940757678,291.26619984,0.00018902,2]
[312517524,1705940758140,-1365.93529669,0.00021003,2]
[312517525,1705940758604,3916.47,0.00020966,2]
[312517526,1705940767631,536.29112856,0.00019,2]
[312517527,1705940768740,1891.34948283,0.00018902,2]
[312517528,1705940769172,361.47459832,0.00018902,2]
[312517529,1705940771121,215.47785591,0.00020991,2]
[312517530,1705940771271,232.19045124,0.00021002,2]
[312517531,1705940776772,534.1622976,0.00018902,2]
[312517532,1705940776956,24364.25256721,0.00021002,2]
[312517533,1705940777233,155.0,0.00018902,2]
[312517534,1705940778009,160.97953371,0.00020904,2]
[312517535,1705940779785,18976.97972243,0.00018902,2]
[312517536,1705940789631,2157.841473,0.00020897,2]
[312517537,1705940791167,361.20697618,0.00018902,2]
[312517538,1705940799122,155.0,0.00018902,2]
[312517539,1705940799745,18976.97972243,0.00018902,2]
[312517540,1705940805171,311.54705533,0.00018902,2]
[312517541,1705940809689,25002.8,0.00021002,2]
[312517542,1705940812346,25002.8,0.00021002,2]
[312517543,1705940817057,25002.8,0.00021002,2]
[312517544,1705940818237,200.0,0.0002099,2]
[312517545,1705940819107,166.23144376,0.00018902,2]
[312517546,1705940821170,25002.8,0.00021002,2]
[312517547,1705940821537,150.0,0.00021002,2]
[312517548,1705940821601,300.0,0.00021002,2]
[312517549,1705940822256,12126.27571396,0.00018902,2]
[312517550,1705940826114,-580.90321155,0.00021005,2]
[312517551,1705940849242,-232.19045124,0.00021004,2]
[312517552,1705940849262,-210.55606186,0.00021005,2]
[312517553,1705940870098,200.0,0.00020966,2]
[312517554,1705940878507,183.36,0.00020958,2]
[312517555,1705940910404,1241.01,0.00020982,2]
[312517556,1705940920337,2000.0,0.00020982,2]
[312517557,1705940954246,-232.19045124,0.00021004,2]
[312517558,1705940954267,-3046.47150089,0.00021008,2]
[312517559,1705940954286,-3628.02899635,0.00021009,2]
[312517560,1705940954307,-1046.17658678,0.0002101,2]
[312517561,1705940954326,-2540.19315206,0.0002101,2]
[312517562,1705940955470,250.0,0.00020963,2]
[312517563,1705940969224,-3127.67888236,0.0002101,2]
[312517564,1705940970140,-3077.2996,0.0002101,2]
[312517565,1705940971399,-34290.20582937,0.0002101,2]
[312517566,1705940971421,-408.59242185,0.00021011,2]
[312517567,1705940973098,-1920.2039,0.00021011,2]
[312517581,1705941032679,-300.0,0.0002101,2]
[312517582,1705941032689,-150.0,0.0002101,2]
[312517583,1705941032698,-150.0,0.0002101,2]
[312517584,1705941032708,-5746.61079029,0.00021011,2]
[312517585,1705941032741,-956.9078761,0.00021011,2]
[312517586,1705941032921,-24.68460155,0.00021011,2]
[312517587,1705941032935,-3677.26281111,0.00021011,2]
[312517597,1705941037472,-3046.47150089,0.00021009,2]
[312517598,1705941037482,-292.1963991,0.00021011,2]
[312517599,1705941037492,-231.76884349,0.00021011,2]
[312517600,1705941037502,-253.96304871,0.00021011,2]
[312517601,1705941037512,-2088.88170742,0.00021011,2]
[312517602,1705941037554,-1535.10263838,0.00021011,2]
[312517603,1705941037564,-245.02111163,0.00021012,2]
[312517604,1705941037573,-1256.70561379,0.00021012,2]
[312517605,1705941037582,-367.52004138,0.00021012,2]
[312517606,1705941037591,-151.29,0.00021012,2]
[312517607,1705941037601,-24336.34953994,0.00021013,2]
[312517608,1705941037610,-156.83040869,0.00021014,2]
[312517609,1705941037619,-265.60479765,0.00021014,2]
[312517610,1705941037629,-4634.6600189,0.00021014,2]
[312517611,1705941037638,-384.50002394,0.00021014,2]
[312517612,1705941037648,-10522.23944636,0.00021014,2]
[312517613,1705941037657,-246.27181484,0.00021014,2]
[312517614,1705941037666,-581.554863,0.00021014,2]
[312517615,1705941037679,-697.90157938,0.00021014,2]
[312517616,1705941037688,-1340.1585616,0.00021014,2]
[312517617,1705941037698,-1277.63673817,0.00021015,2]
[312517618,1705941037708,-155.0,0.00021016,2]
[312517619,1705941037718,-672.41196584,0.00021016,2]
[312517620,1705941037728,-2142.39385977,0.00021016,2]
[312517621,1705941037737,-155.0,0.00021016,2]
[312517622,1705941037748,-599.23752023,0.00021016,2]
[312517623,1705941037758,-33377.0838149,0.00021016,2]
[312517624,1705941037768,-281.91214692,0.00021016,2]
[312517625,1705941037777,-1828.8146978,0.00021016,2]
[312517626,1705941037787,-155.0,0.00021016,2]
[312517627,1705941037796,-199.24875695,0.00021017,2]
[312517628,1705941037805,-2999.78335271,0.00021017,2]
[312517629,1705941037815,-601.01,0.00021022,2]
[312517630,1705941037825,-497.55,0.00021032,2]
[312517631,1705941037834,-183.33,0.00021102,2]
[312517632,1705941037844,-1228.73,0.00021132,2]
[312517633,1705941037853,-158.91,0.00021251,2]
[312517634,1705941037863,-155.26,0.00021255,2]
[312517636,1705941037872,-303.86,0.00021281,2]
[312517638,1705941037880,-155.26,0.00021324,2]
[312517640,1705941037890,-155.26,0.00021394,2]
[312517642,1705941037900,-155.26,0.00021463,2]
[312517644,1705941037909,-155.26,0.00021532,2]
[312517646,1705941037918,-224.6,0.00021572,2]
[312517648,1705941037932,-155.26,0.00021601,2]
[312517650,1705941037942,-629.23,0.00021644,2]
[312517652,1705941037951,-155.26,0.00021671,2]
[312517654,1705941037960,-155.26,0.0002174,2]
[312517656,1705941037971,-155.26,0.00021809,2]
[312517658,1705941037980,-1271.40046264,0.0002185,2]
[312517660,1705941037989,-441.02272604,0.0002185,2]
[312517662,1705941037998,-155.0,0.0002185,2]
[312517664,1705941038008,-289.96148954,0.0002185,2]
[312517666,1705941038017,-155.0,0.0002185,2]
[312517668,1705941038026,-387.12521782,0.0002185,2]
[312517670,1705941038037,-364.22141274,0.0002185,2]
[312517672,1705941038046,-506.18432844,0.0002185,2]
[312517675,1705941038055,-286.78293325,0.0002185,2]
[312517678,1705941038064,-501.64649698,0.0002185,2]
[312517680,1705941038073,-155.0,0.0002185,2]
[312517684,1705941038083,-4274.40730541,0.0002185,2]
[312517686,1705941038092,-295.61943597,0.0002185,2]
[312517687,1705941038102,-419.33476208,0.00021853,2]
[312517689,1705941038111,-625.68257867,0.00021853,2]
[312517691,1705941038123,-3188.89864652,0.00021853,2]
[312517693,1705941038133,-155.26,0.00021878,2]
[312517696,1705941038143,-250.0,0.00021918,2]
[312517698,1705941038152,-4648.03,0.00021918,2]
[312517699,1705941038162,-155.26,0.00021948,2]
[312517702,1705941038174,-1126.24697237,0.00022,2]
[312517703,1705941038184,-941.78794294,0.00022,2]
[312517705,1705941038193,-155.26,0.00022017,2]
[312517707,1705941038203,-155.26,0.00022086,2]
[312517709,1705941038213,-155.26,0.00022155,2]
[312517711,1705941038223,-18194.9167,0.00022172,2]
[312517713,1705941038232,-155.26,0.00022224,2]
[312517715,1705941038241,-6092.02425308,0.00022272,2]
[312517717,1705941038251,-155.26,0.00022294,2]
[312517719,1705941038260,-155.26,0.00022363,2]
[312517721,1705941038269,-629.23,0.00022445,2]
[312517723,1705941038277,-494.84174762,0.00022536,2]
[312517725,1705941038287,-14926.0,0.00022538,2]
[312517727,1705941038296,-414.91,0.00022546,2]
[312517729,1705941038306,-1739.1471,0.00022563,2]
[312517731,1705941038317,-224.6,0.00022651,2]
[312517733,1705941038328,-608.6203,0.00022663,2]
[312517735,1705941038338,-72563.0957,0.00022663,2]
[312517737,1705941038348,-500.0,0.00022663,2]
[312517739,1705941038357,-748.57412641,0.00022667,2]
[312517741,1705941038367,-251.33576022,0.00022667,2]
[312517743,1705941038376,-855.45388985,0.00022667,2]
[312517745,1705941038386,-1425.888,0.00022669,2]
[312517747,1705941038395,-2572.62697915,0.00022763,2]
[312517749,1705941038407,-1916.97709376,0.00022763,2]
[312517751,1705941038417,-712.93008703,0.00022763,2]
[312517753,1705941038428,-759.28292396,0.00022765,2]
[312517755,1705941038437,-158.86466524,0.00022765,2]
[312517757,1705941038446,-2948.28581293,0.00022765,2]
[312517760,1705941038456,-920.36339146,0.00022766,2]
[312517762,1705941038465,-1204.08066504,0.00022766,2]
[312517764,1705941038475,-524.19831016,0.00022766,2]
[312517766,1705941038484,-155.0,0.00022766,2]
[312517768,1705941038494,-155.0,0.00022766,2]
[312517769,1705941038503,-155.0,0.00022766,2]
[312517772,1705941038512,-155.0,0.00022766,2]
[312517773,1705941038521,-377.0614235,0.00022766,2]
[312517776,1705941038530,-160.73027648,0.00022766,2]
[312517778,1705941038539,-1044.43077942,0.00022766,2]
[312517780,1705941038548,-529.54586696,0.00022766,2]
[312517781,1705941038558,-4628.20523515,0.00022766,2]
[312517783,1705941038567,-155.0,0.00022766,2]
[312517785,1705941038576,-418.21791161,0.00022766,2]
[312517788,1705941038586,-467763.70702083,0.00022766,2]
[312517790,1705941038601,-2158.24505822,0.00022766,2]
[312517794,1705941038630,-2568.34706806,0.00022766,2]
[312517797,1705941038641,-941.45216652,0.00022766,2]
[312517954,1705941040056,-4365.40788766,0.00022766,2]
[312517991,1705941040515,-264547.5137409,0.00022766,2]
[312517992,1705941040580,-500.0,0.00022766,2]
[312517993,1705941040711,-296.12134139,0.00022766,2]
[312517994,1705941040723,-10584.8058193,0.00022766,2]
[312517995,1705941040734,-7420.13946109,0.00022766,2]
[312517996,1705941040745,-295.41653518,0.00022766,2]
[312517997,1705941040757,-752.08599537,0.00022766,2]
[312517998,1705941040768,-366.43596909,0.00022766,2]
[312517999,1705941040781,-294835.06192862,0.00022766,2]
[312518000,1705941040790,-6441.03694263,0.00022767,2]
[312518002,1705941040800,-22618.4614423,0.00022768,2]
[312518003,1705941040810,-1000.0,0.00022899,2]
[312518004,1705941040819,-150.88235296,0.000229,2]
[312518005,1705941040828,-231.44342245,0.000229,2]
[312518006,1705941040837,-5445.7964682,0.00022998,2]
[312518008,1705941040847,-155.19659664,0.00022998,2]
[312518009,1705941040856,-3677.26281111,0.00022998,4]
[312518010,1705941040865,-33771.39944066,0.00022998,2]
[312518011,1705941040874,-32436.63911913,0.00023,2]
[312518012,1705941040883,-225.80808155,0.00023,2]
[312518013,1705941040892,-1096.02714429,0.00023,2]
[312518014,1705941040901,-239.30699342,0.00023,2]
[312518015,1705941040910,-1978.29238711,0.00023,2]
[312518016,1705941040921,-337.09024238,0.0002313,2]
[312518017,1705941040930,-1197.5600712,0.00023146,2]
[312518018,1705941040939,-629.23,0.00023245,2]
[312518019,1705941040948,-398.99,0.00023531,2]
[312518020,1705941040958,-303.86,0.00023545,2]
[312518021,1705941040967,-601.01,0.00023649,2]
[312518022,1705941040976,-150.88235275,0.00023663,2]
[312518023,1705941040986,-224.6,0.00023729,2]
[312518024,1705941040995,-160.97953371,0.00023903,2]
[312518025,1705941041004,-629.23,0.00024046,2]
[312518026,1705941041013,-414.91,0.0002419,2]
[312518027,1705941041022,-4518.0,0.000242,2]
[312518028,1705941041031,-250.0,0.00024658,2]
[312518029,1705941041040,-150.88235275,0.00024659,2]
[312518030,1705941041050,-175.76,0.00024697,2]
[312518031,1705941041059,-224.6,0.00024808,2]
[312518032,1705941041069,-629.23,0.00024847,2]
[312518033,1705941041078,-158.67264273,0.00025,2]
[312518034,1705941041087,-201.79352657,0.00025,2]
[312518035,1705941041097,-259.93348509,0.00025,2]
[312518036,1705941041107,-774.04824486,0.00025,2]
[312518037,1705941041117,-1584.56156338,0.00025,2]
[312518038,1705941041130,-200.0,0.00025,2]
[312518039,1705941041139,-624.03501934,0.00025,2]
[312518040,1705941041148,-155.0,0.00025,2]
[312518041,1705941041158,-509.22119019,0.00025,2]
[312518042,1705941041168,-350.0,0.00025,3]
[312518043,1705941041178,-2913.0,0.000251,2]
[312518044,1705941041188,-159.98,0.00025187,2]
[312518045,1705941041197,-748.57412641,0.00025597,2]
[312518046,1705941041206,-150.88235275,0.00025656,2]
[312518047,1705941041217,-303.86,0.00025808,2]
[312518048,1705941041226,-414.91,0.00025833,2]
[312518049,1705941041235,-224.6,0.00025887,2]
[312518050,1705941041244,-398.99,0.00026146,2]